bitfinex-derivatives/quotes_SOLF0:USTF0_20250215
["timestamp","ask_amount","ask_price","bid_price","bid_amount"]
[1739579715929,0.03658207,197.11,197.08,0.03796674]
[1739579716231,8.00560838,197.14,197.07,8.00560838]
[1739579716432,9.947e-05,197.11,197.08,0.0373049]
[1739579716632,9.947e-05,197.11,197.09,8.00560838]
[1739579716927,9.947e-05,197.11,197.1,5.0728]
[1739579718236,9.947e-05,197.11,197.09,5.0729]
[1739579718531,8.00560838,197.1,197.08,0.0373049]
[1739579719636,9.947e-05,197.11,197.08,0.0373049]
[1739579719937,1.26878363,197.1,197.08,0.0373049]
[1739579720234,1.26878363,197.09,197.08,0.0373049]
[1739579720435,1.26878363,197.09,197.08,5.1105049]
[1739579725336,9.947e-05,197.11,197.08,0.0373049]
[1739579725539,1.26878265,197.1,197.09,5.073]
[1739579726629,1.26878265,197.1,197.08,5.1104049]
[1739579726829,1.26878265,197.09,197.08,0.0373049]
[1739579727740,1.26878265,197.09,197.08,5.1106049]
[1739579733245,1.26878265,197.09,197.08,0.0373049]
[1739579734744,6.61193417,197.09,197.08,0.0373049]
[1739579736347,6.61193417,197.09,196.89,12.51841815]
[1739579736549,12.51841815,197.04,196.91,1.6292]
[1739579736744,6.61193417,197.03,196.91,1.6292]
[1739579736944,1.26878265,197.02,196.91,1.6292]
[1739579737147,1.26878265,197.01,196.92,12.51841815]
[1739579737348,1.26878265,197.0,196.99,5.0756]
[1739579738143,8.265e-05,197.0,196.99,5.0756]
[1739579738346,5.226e-05,197.01,197.0,5.0753]
[1739579743643,5.226e-05,197.01,197.0,13.08647252]
[1739579747257,8.01117252,197.14,197.06,8.01117252]
[1739579747457,5.33617514,197.13,197.06,8.01117252]
[1739579748158,5.33617514,197.13,197.02,8.01117252]
[1739579748159,8.01117252,197.1,197.02,8.01117252]
[1739579748655,8.01117252,197.1,197.04,0.03258974]
[1739579748851,8.01117252,197.08,197.04,0.03258974]
[1739579749046,8.01117252,197.06,197.04,0.03258974]
[1739579749655,8.01117252,197.06,196.94,113.88]
[1739579749656,5.33115257,197.05,196.96,8.01117252]
[1739579749856,8.01117252,197.04,196.96,8.01117252]
[1739579750055,8.01117252,197.06,197.01,5.0749]
[1739579750255,6.60169862,197.05,197.01,5.0749]
[1739579750455,1.26906948,197.04,196.97,1.5173]
[1739579750658,1.26906948,197.03,196.97,1.5173]
[1739579750857,1.30530228,197.02,196.99,0.03536375]
[1739579751058,1.26906948,197.01,196.99,0.03536375]
[1739579751261,1.26906948,197.0,196.99,0.03536375]
[1739579752960,6.34436948,197.0,196.99,0.03536375]
[1739579753161,11.67523204,197.0,196.99,0.03536375]
[1739579753761,11.67523204,197.0,196.94,5.0768]
[1739579753959,6.59993204,196.99,196.94,5.0768]
[1739579754154,1.2695021,196.98,196.94,5.0768]
[1739579754358,1.2695021,196.97,196.94,5.0768]
[1739579754564,1.2695021,196.96,196.95,5.0766]
[1739579754760,1.2695021,196.98,196.95,5.0766]
[1739579754960,1.2695021,196.97,196.95,5.0766]
[1739579755161,1.2695021,196.96,196.95,5.11300124]
[1739579755362,1.2695021,196.97,196.95,0.03640124]
[1739579755662,1.2695021,196.96,196.95,0.03640124]
[1739579755863,0.03600343,196.98,196.95,0.03640124]
[1739579756066,0.03600343,196.98,196.97,5.0761]
[1739579756766,3.43e-06,196.98,196.97,5.0761]
[1739579757668,3.43e-06,196.98,196.95,0.03640124]
[1739579758661,5.0763,196.97,196.95,0.03640124]
[1739579758962,12.52686651,196.97,196.95,0.03640124]
[1739579759266,5.0766,196.95,196.83,4.728]
[1739579759465,5.0766,196.95,196.9,5.0777]
[1739579760267,0.03738265,196.94,196.91,0.03563116]
[1739579762765,0.03738265,196.94,196.93,5.0771]
[1739579766267,8.265e-05,196.94,196.93,5.0771]
[1739579772771,8.265e-05,196.94,196.91,0.03563116]
[1739579774174,1.26938359,196.93,196.83,0.18041]
[1739579774373,1.26938359,196.92,196.83,0.18041]
[1739579774770,1.26938359,196.91,196.83,0.18041]
[1739579774971,1.26938359,196.9,196.83,0.18041]
[1739579775168,0.03506363,196.88,196.83,0.18041]
[1739579775372,0.03506363,196.88,196.85,0.03211747]
[1739579775978,0.03506363,196.88,196.87,5.0787]
[1739579777078,0.03506363,196.88,196.85,0.03211747]
[1739579777480,0.03506363,196.88,196.84,5.0792]
[1739579777775,1.27009313,196.87,196.83,0.18041]
[1739579778276,1.27009313,196.87,196.85,5.079]
[1739579778676,1.27009313,196.87,196.84,0.03575582]
[1739579778873,1.27009313,196.87,196.86,5.0789]
[1739579780281,0.03506363,196.88,196.87,5.0787]
[1739579780984,6.363e-05,196.88,196.87,5.0787]
[1739579782283,10.1419,197.18,196.99,5.0754]
[1739579782284,184.20622246,197.03,196.99,5.0754]
[1739579782478,1.2694832,197.01,196.9,12.52686651]
[1739579782678,1.2694832,197.01,196.91,3.1174]
[1739579782884,171.67935595,197.03,196.91,4.6659]
[1739579783085,12.52686651,197.06,196.93,12.52686651]
[1739579783284,1.26918501,197.05,196.93,12.52686651]
[1739579783485,1.26918501,197.05,196.98,0.03455455]
[1739579783486,0.03757903,197.01,196.98,0.03455455]
[1739579783993,0.03757903,197.01,197.0,5.0753]
[1739579784487,0.03757903,197.01,196.98,0.03455455]
[1739579784688,1.26920499,197.0,196.98,0.03455455]
[1739579785589,1.26920499,197.0,196.98,5.11035455]
[1739579785988,1.26920499,197.0,196.98,0.03455455]
[1739579786289,1.26920499,197.0,196.87,12.52686651]
[1739579786493,13.7960715,197.0,196.87,12.52686651]
[1739579786679,13.7960715,197.0,196.94,5.0766]
[1739579786680,1.26920499,196.99,196.94,5.0766]
[1739579786881,1.26920499,196.99,196.86,1.4876]
[1739579787587,0.03455334,196.94,196.91,0.03898564]
[1739579788186,0.03455334,196.94,196.93,5.0771]
[1739579790092,1.30419481,196.94,196.93,5.0771]
[1739579791087,1.30419481,196.94,196.91,0.03898564]
[1739579791396,1.26964147,196.93,196.91,0.03898564]
[1739579793196,1.26964147,196.93,196.92,5.0774]
[1739579793993,4.147e-05,196.93,196.92,5.0774]
[1739579794298,0.03455334,196.94,196.93,5.0771]
[1739579794299,9.481e-05,196.94,196.93,5.0771]
[1739579799000,9.481e-05,196.94,196.92,5.0773]
[1739579799201,9.481e-05,196.94,196.91,0.03898564]
[1739579799598,9.481e-05,196.94,196.93,5.0771]
[1739579807205,8.482e-05,196.95,196.94,5.0769]
[1739579807405,12.52686651,197.03,196.9,12.52686651]
[1739579807606,5.32841084,197.02,196.9,12.52686651]
[1739579807809,5.32841084,197.02,197.0,5.0751]
[1739579808309,12.5642813,197.03,197.0,5.0751]
[1739579808507,5.32924996,197.02,197.0,5.0751]
[1739579808906,5.32924996,197.02,196.99,0.03656005]
[1739579809209,5.3282543,197.01,196.99,0.03656005]
[1739579809404,17.85512081,197.0,196.99,0.03656005]
[1739579809608,22.93042081,197.0,196.99,0.03656005]
[1739579810007,17.85512081,197.0,196.87,12.52686651]
[1739579810210,17.85512081,197.0,196.94,5.0767]
[1739579810211,10.4040543,196.99,196.94,5.0767]
[1739579810406,5.3282543,196.98,196.94,5.0767]
[1739579810606,5.3282543,196.98,196.87,12.52686651]
[1739579810810,5.3282543,196.97,196.87,12.52686651]
[1739579811211,0.0363,196.94,196.9,0.03310865]
[1739579812709,0.0363,196.94,196.93,5.0771]
[1739579813513,5.3263171,196.99,196.98,5.0758]
[1739579813714,5.3263171,197.02,196.87,12.52686651]
[1739579813908,5.3263171,197.01,196.87,12.52686651]
[1739579814104,5.3263171,197.0,196.9,12.52686651]
[1739579814308,5.3263171,196.99,196.9,12.52686651]
[1739579814512,20.39170488,197.05,197.0,5.0751]
[1739579814712,5.32798993,197.04,197.0,5.0751]
[1739579814914,5.36569331,197.04,197.0,5.0751]
[1739579815214,5.36569331,197.04,197.01,5.0749]
[1739579815409,5.36569331,197.04,197.0,0.03212541]
[1739579815410,10.44019331,197.04,197.0,0.03212541]
[1739579815610,5.32798993,197.03,197.0,0.03212541]
[1739579816313,10.40258993,197.03,197.0,0.03212541]
[1739579816511,5.32798993,197.02,197.0,0.03212541]
[1739579816713,5.32798993,197.01,197.0,0.03212541]
[1739579817110,5.0751,197.01,197.0,0.03212541]
[1739579817314,10.40308993,197.01,197.0,0.03212541]
[1739579817909,5.0758,196.99,196.95,5.0764]
[1739579818109,5.32798993,196.98,196.95,5.0764]
[1739579818711,5.0751,197.01,196.97,5.0761]
[1739579818906,5.32648453,197.0,196.87,12.52686651]
[1739579819415,6.5959593,196.99,196.92,0.03647199]
[1739579819717,3.051e-05,196.98,196.97,5.0761]
[1739579820015,5.32782602,197.04,196.9,12.52686651]
[1739579820215,5.32782602,197.03,196.9,12.52686651]
[1739579820416,4.7999,197.05,197.02,5.0746]
[1739579820617,10.12864472,197.05,197.02,5.0746]
[1739579820814,5.3281644,197.04,197.02,5.10768442]
[1739579821113,5.3281644,197.03,197.02,0.03308442]
[1739579821315,10.16425449,197.05,197.02,0.03308442]
[1739579821618,5.0746,197.03,197.02,0.03308442]
[1739579821917,10.4027644,197.03,197.02,0.03308442]
[1739579825016,5.0751,197.01,196.98,5.0758]
[1739579825221,5.3281644,197.0,196.98,5.0758]
[1739579825730,5.3281644,197.0,196.9,12.52686651]
[1739579826016,5.3281644,196.99,196.87,22.68406651]
[1739579826218,0.03810203,196.97,196.93,0.03762768]
[1739579826417,5.0764,196.96,196.93,5.11452768]
[1739579826618,5.3281644,196.95,196.93,0.03762768]
[1739579826817,5.3281644,196.94,196.93,0.03762768]
[1739579827019,5.0769,196.94,196.93,0.03762768]
[1739579827213,5.3281644,196.95,196.93,0.03762768]
[1739579827414,5.3281644,196.94,196.93,0.03762768]
[1739579827611,5.3281644,196.94,196.93,5.11452768]
[1739579828012,5.3281644,196.94,196.93,0.03762768]
[1739579828613,6.81702696,196.96,196.94,5.0767]
[1739579829221,5.33392696,196.96,196.95,5.0766]
[1739579829433,5.33392696,196.96,196.93,0.03762768]
[1739579829434,0.03810203,196.97,196.93,0.03762768]
[1739579829815,0.03810203,196.97,196.96,5.0764]
[1739579831727,1.30754551,196.97,196.96,5.0764]
[1739579831922,6.64147247,196.97,196.96,5.0764]
[1739579832321,1.30754551,196.97,196.96,5.0764]
[1739579832526,1.30754551,196.97,196.93,0.03762768]
[1739579832728,1.26944348,196.96,196.93,0.03762768]
[1739579833025,1.26944348,196.95,196.93,0.03762768]
[1739579833222,1.26944348,196.94,196.93,0.03762768]
[1739579833626,6.34634348,196.94,196.93,0.03762768]
[1739579833826,6.60337044,196.94,196.93,0.03762768]
[1739579834527,1.26944348,196.94,196.93,0.03762768]
[1739579835228,1.26944348,196.94,196.93,5.11472768]
[1739579835925,4.348e-05,196.94,196.93,5.11472768]
[1739579836429,4.551e-05,196.97,196.96,5.0764]
[1739579837229,137.23954875,197.05,197.04,5.0743]
[1739579837426,149.76641526,197.1,196.95,1.6398]
[1739579837725,149.76641526,197.1,196.96,12.52686651]
[1739579838428,0.03487084,197.04,197.01,0.0350265]
[1739579838830,0.03487084,197.04,197.03,5.0746]
[1739579839729,0.03487084,197.04,197.01,0.0350265]
[1739579841032,0.03487084,197.04,197.02,5.0748]
[1739579841235,0.03487084,197.04,197.01,0.0350265]
[1739579843135,0.03487084,197.04,197.03,5.0746]
[1739579847140,7.084e-05,197.04,197.03,5.0746]
[1739579848642,9.183e-05,197.07,197.06,5.0738]
[1739579848837,12.52686651,197.13,197.03,1.5845]
[1739579849241,12.52686651,197.13,197.1,5.0726]
[1739579849442,12.52686651,197.13,197.03,1.5845]
[1739579849842,0.03239686,197.1,197.09,5.073]
[1739579853344,14.14726651,197.19,197.16,5.0712]
[1739579853541,14.14726651,197.19,197.05,12.52686651]
[1739579854043,5.0714,197.16,197.05,12.52686651]
[1739579854449,14.14726651,197.19,197.05,12.52686651]
[1739579854641,0.03622193,197.12,197.09,0.03667218]
[1739579854946,14.14726651,197.19,197.09,0.03667218]
[1739579855142,9.841e-05,197.12,197.09,0.03667218]
[1739579855346,14.14726651,197.19,197.09,0.03667218]
[1739579855542,14.14726651,197.19,197.14,5.0715]
[1739579855744,14.14726651,197.19,197.05,12.52686651]
[1739579856135,5.0713,197.16,197.12,5.0722]
[1739579856542,5.0713,197.16,197.1,0.03694037]
[1739579857345,5.0713,197.16,197.12,5.0721]
[1739579858742,14.14726651,197.19,197.1,0.03694037]
[1739579858743,14.14726651,197.19,197.13,5.0719]
[1739579858944,5.071,197.17,197.05,12.52686651]
[1739579859246,14.14726651,197.19,197.14,0.03282978]
[1739579859452,14.14726651,197.19,197.05,12.52686651]
[1739579859646,12.52686651,197.19,197.05,12.52686651]
[1739579859846,12.52686651,197.19,197.1,0.03231979]
[1739579860045,17.59726651,197.19,197.15,5.0713]
[1739579860445,17.59726651,197.19,197.15,5.10655857]
[1739579861751,17.59726651,197.19,197.16,5.071]
[1739579862949,5.0707,197.18,197.16,5.071]
[1739579863150,12.52686651,197.19,197.18,5.0707]
[1739579863349,12.52686651,197.22,197.15,0.03525857]
[1739579863850,12.52686651,197.22,197.19,5.0703]
[1739579864646,5.0692,197.24,197.15,0.03525857]
[1739579864850,14.14196651,197.25,197.15,0.03525857]
[1739579865253,5.0693,197.24,197.21,5.0699]
[1739579865554,12.52686651,197.25,197.11,12.52686651]
[1739579865753,12.52686651,197.25,197.21,0.03848245]
[1739579865951,17.59586651,197.25,197.11,12.52686651]
[1739579866462,17.59586651,197.25,197.16,0.03262259]
[1739579866753,12.52686651,197.25,197.22,5.0695]
[1739579866952,12.52686651,197.25,197.11,12.52686651]
[1739579867149,12.52686651,197.25,197.22,0.03411846]
[1739579867454,12.52686651,197.25,197.22,0.03489048]
[1739579868051,12.52686651,197.25,197.22,5.10449048]
[1739579868251,12.52686651,197.28,197.22,0.03489048]
[1739579868652,5.0686,197.27,197.23,5.0692]
[1739579868954,5.0686,197.27,197.22,0.03489048]
[1739579869250,5.0687,197.26,197.22,0.03489048]
[1739579869452,12.52686651,197.28,197.22,0.03489048]
[1739579870458,12.52686651,197.25,197.22,0.03489048]
[1739579870848,5.0694,197.23,197.22,0.03489048]
[1739579871055,12.52686651,197.25,197.22,0.03489048]
[1739579871654,17.59576651,197.25,197.22,5.10459048]
[1739579872255,12.52686651,197.25,197.22,0.03489048]
[1739579872455,12.52686651,197.25,197.23,5.0694]
[1739579872658,5.0687,197.26,197.23,5.0694]
[1739579875060,12.52686651,197.28,197.22,0.03489048]
[1739579875262,12.52686651,197.25,197.22,0.03489048]
[1739579875661,5.0694,197.23,197.22,0.03489048]
[1739579876265,12.52686651,197.25,197.22,0.03489048]
[1739579877062,17.59596651,197.25,197.22,5.10439048]
[1739579877863,17.59596651,197.25,197.22,0.03489048]
[1739579878067,5.0687,197.26,197.23,5.0694]
[1739579878969,5.0694,197.23,197.22,0.03489048]
[1739579881074,12.52686651,197.25,197.22,5.10449048]
[1739579881276,12.52686651,197.25,197.22,0.03489048]
[1739579881470,17.59586651,197.25,197.22,0.03489048]
[1739579881673,17.59586651,197.25,197.22,5.10449048]
[1739579882274,12.52686651,197.25,197.22,0.03489048]
[1739579882474,5.0692,197.24,197.22,0.03489048]
[1739579882675,12.52686651,197.25,197.22,0.03489048]
[1739579883678,149.76641526,197.28,197.22,0.03489048]
[1739579883878,154.83471526,197.28,197.22,0.03489048]
[1739579885177,149.76641526,197.28,197.22,0.03489048]
[1739579885373,5.0679,197.29,197.25,5.0687]
[1739579885574,7.99551921,197.29,197.22,8.03040969]
[1739579885979,7.99551921,197.29,197.28,5.0681]
[1739579886375,137.23954875,197.3,197.27,0.03459716]
[1739579886581,137.23954875,197.3,197.29,5.0679]
[1739579886981,137.23954875,197.3,197.27,0.03573644]
[1739579888083,5.0665,197.35,197.29,5.0677]
[1739579888478,151.22558271,197.36,197.27,0.03573644]
[1739579889784,156.29188271,197.36,197.3,5.0674]
[1739579889983,19.05233396,197.36,197.22,12.48853396]
[1739579890483,13.98603396,197.36,197.22,12.48853396]
[1739579890684,13.98603396,197.36,197.27,0.03629132]
[1739579890889,13.98603396,197.36,197.28,5.0679]
[1739579891486,5.0666,197.35,197.29,5.0678]
[1739579891787,5.0666,197.35,197.27,0.03629132]
[1739579891988,12.48853396,197.36,197.27,0.03629132]
[1739579892186,5.0666,197.34,197.27,0.03629132]
[1739579892688,5.0664,197.35,197.3,5.0676]
[1739579892889,137.23954875,197.38,197.25,12.48853396]
[1739579893084,137.23954875,197.38,197.32,5.0669]
[1739579893281,5.066,197.37,197.32,5.0669]
[1739579893683,12.48853396,197.39,197.31,0.03565439]
[1739579895791,5.066,197.37,197.33,5.0668]
[1739579895983,5.066,197.37,197.31,0.03565439]
[1739579896291,5.065,197.41,197.36,5.0659]
[1739579896692,5.065,197.41,197.37,0.03305782]
[1739579897089,137.23954875,197.43,197.37,0.03305782]
[1739579898186,12.48853396,197.45,197.37,0.03305782]
[1739579898588,5.0643,197.43,197.38,5.0653]
[1739579898888,12.48853396,197.45,197.37,0.03305782]
[1739579899488,137.23954875,197.46,197.37,0.03305782]
[1739579899685,137.23954875,197.45,197.37,0.03305782]
[1739579899889,5.0642,197.44,197.39,5.0651]
[1739579900292,137.23954875,197.45,197.39,5.0651]
[1739579900493,137.23954875,197.45,197.4,5.065]
[1739579900886,142.30354875,197.45,197.4,5.065]
[1739579901792,5.064,197.45,197.4,5.065]
[1739579902188,12.48853396,197.48,197.37,0.03305782]
[1739579902790,5.0635,197.47,197.37,0.03305782]
[1739579903184,12.48853396,197.48,197.37,0.03305782]
[1739579903392,5.0633,197.47,197.42,5.0644]
[1739579903693,5.0633,197.47,197.35,4.6745]
[1739579903894,5.0633,197.47,197.43,0.03779565]
[1739579904094,5.0633,197.47,197.42,5.0643]
[1739579904488,5.0633,197.47,197.43,0.03412477]
[1739579904898,5.0633,197.47,197.43,5.09832477]
[1739579905397,5.0637,197.46,197.43,0.03412477]
[1739579905996,5.0637,197.46,197.43,5.09842477]
[1739579906796,12.48853396,197.48,197.43,0.03412477]
[1739579907397,12.48853396,197.48,197.43,5.09832477]
[1739579908099,5.0637,197.46,197.43,0.03412477]
[1739579908490,5.064,197.45,197.43,0.03412477]
[1739579908689,12.48853396,197.48,197.43,0.03412477]
[1739579909094,12.48853396,197.45,197.43,0.03412477]
[1739579909399,12.48853396,197.45,197.38,5.0655]
[1739579909598,7.9851828,197.42,197.35,9.4675828]
[1739579909795,7.9851828,197.42,197.4,5.0649]
[1739579910401,7.9851828,197.42,197.39,0.03805051]
[1739579910602,7.9851828,197.42,197.39,5.10335051]
[1739579911293,7.9851828,197.42,197.41,5.0648]
[1739579912102,0.03506597,197.43,197.42,5.0645]
[1739579912900,6.597e-05,197.43,197.42,5.0645]
[1739579917605,6.597e-05,197.43,197.42,6.6378]
[1739579920920,6.597e-05,197.43,197.42,1.5733]
[1739579921219,6.597e-05,197.43,197.41,13.0499828]
[1739579922114,6.597e-05,197.43,197.39,0.03805051]
[1739579924018,5.0645,197.42,197.39,0.03805051]
[1739579924613,6.597e-05,197.43,197.39,0.03805051]
[1739579924819,5.065,197.4,197.39,0.03805051]
[1739579925816,13.0501828,197.4,197.39,0.03805051]
[1739579928421,7.9851828,197.35,197.27,7.9851828]
[1739579928821,5.0668,197.34,197.29,5.0679]
[1739579929522,0.03814751,197.33,197.3,0.0322158]
[1739579930220,13.09033031,197.33,197.3,0.0322158]
[1739579930423,7.9851828,197.31,197.3,0.0322158]
[1739579930921,8.02333031,197.33,197.3,0.0322158]
[1739579931118,0.03814751,197.33,197.3,0.0322158]
[1739579931323,0.03814751,197.33,197.31,5.0672]
[1739579931919,0.03814751,197.33,197.32,5.0671]
[1739579932318,8.02333031,197.33,197.3,0.0322158]
[1739579933216,8.02333031,197.33,197.3,5.0996158]
[1739579933522,8.02333031,197.33,197.3,0.0322158]
[1739579934221,8.02333031,197.33,197.3,5.0998158]
[1739579934722,13.0525828,197.31,197.3,0.0322158]
[1739579934919,7.9851828,197.31,197.3,0.0322158]
[1739579935925,8.02333031,197.33,197.3,0.0322158]
[1739579937127,5.0674,197.31,197.3,0.0322158]
[1739579937323,13.0525828,197.31,197.3,0.0322158]
[1739579938825,0.03814751,197.33,197.3,0.0322158]
[1739579939024,0.03814751,197.33,197.32,5.0671]
[1739579942227,8.02333031,197.33,197.3,0.0322158]
[1739579943432,0.03814751,197.33,197.32,5.0671]
[1739579943629,4.751e-05,197.33,197.32,5.0671]
[1739579945623,4.751e-05,197.33,197.32,6.6849]
[1739579946333,14.08295926,197.48,197.32,1.6178]
[1739579946538,15.50955926,197.51,197.37,12.47685926]
[1739579946733,5.0625,197.5,197.37,12.47685926]
[1739579947235,5.0625,197.5,197.45,5.0638]
[1739579947530,14.01365926,197.51,197.42,0.03800286]
[1739579947738,12.47685926,197.54,197.42,0.03800286]
[1739579947927,12.47685926,197.54,197.41,4.6448]
[1739579948132,12.47685926,197.54,197.46,0.03416338]
[1739579948332,12.47685926,197.54,197.49,5.0626]
[1739579948531,5.061,197.56,197.49,5.0626]
[1739579948934,5.061,197.56,197.51,0.03741067]
[1739579950136,12.47685926,197.57,197.51,0.03741067]
[1739579950435,5.0612,197.55,197.51,0.03741067]
[1739579952639,5.0615,197.54,197.51,0.03741067]
[1739579953644,5.0612,197.55,197.51,0.03741067]
[1739579954046,203.89816929,197.67,197.53,12.47685926]
[1739579954346,12.47685926,197.63,197.47,12.47685926]
[1739579954546,12.47685926,197.6,197.56,0.03261113]
[1739579954847,5.0604,197.59,197.52,5.062]
[1739579955047,5.0604,197.59,197.56,0.03873329]
[1739579955343,12.47685926,197.63,197.56,0.03873329]
[1739579956746,1.4939,197.62,197.56,0.03873329]
[1739579957243,5.0603,197.59,197.56,0.03873329]
[1739579957445,1.4939,197.62,197.56,0.03873329]
[1739579958342,5.0599,197.6,197.56,0.03873329]
[1739579958544,1.4939,197.62,197.56,0.03873329]
[1739579959145,5.0599,197.6,197.56,0.03873329]
[1739579960242,1.4939,197.62,197.56,0.03873329]
[1739579960846,6.5534,197.62,197.56,0.03873329]
[1739579961046,1.4939,197.62,197.56,0.03873329]
[1739579962350,3.0408,197.65,197.56,0.03873329]
[1739579962750,1.5355,197.65,197.56,0.03873329]
[1739579962950,12.47685926,197.66,197.56,0.03873329]
[1739579964152,12.47685926,197.66,197.56,5.09943329]
[1739579964543,5.0596,197.62,197.56,5.09943329]
[1739579965148,12.47685926,197.66,197.56,0.03873329]
[1739579965753,5.0599,197.61,197.56,0.03873329]
[1739579966057,12.47685926,197.66,197.56,5.09963329]
[1739579966254,5.0598,197.61,197.56,5.09963329]
[1739579966853,6.78,197.63,197.56,0.03873329]
[1739579967047,12.47685926,197.63,197.56,0.03873329]
[1739579967650,7.97082982,197.6,197.56,0.03873329]
[1739579967851,5.0614,197.55,197.5,13.03322982]
[1739579968057,5.0614,197.55,197.5,5.0624]
[1739579968251,5.0614,197.55,197.51,0.03584447]
[1739579969358,5.062,197.52,197.51,0.03584447]
[1739579969552,7.97082982,197.54,197.51,0.03584447]
[1739579970556,5.0615,197.54,197.51,0.03584447]
[1739579973354,7.97082982,197.56,197.51,0.03584447]
[1739579973957,5.0617,197.54,197.51,0.03584447]
[1739579974462,7.97082982,197.56,197.51,0.03584447]
[1739579975459,5.0618,197.53,197.51,0.03584447]
[1739579978768,5.062,197.52,197.51,0.03584447]
[1739579979568,5.0617,197.53,197.51,0.03584447]
[1739579979768,7.97082982,197.56,197.51,0.03584447]
[1739579979970,7.97082982,197.58,197.51,0.03584447]
[1739579980164,7.97082982,197.58,197.54,5.0613]
[1739579981062,13.03132982,197.58,197.54,5.0613]
[1739579981266,7.97082982,197.58,197.51,0.03584447]
[1739579981472,7.97082982,197.6,197.57,5.0607]
[1739579981866,7.97082982,197.6,197.57,5.09745896]
[1739579982069,7.97082982,197.6,197.57,0.03675896]
[1739579983066,5.0603,197.59,197.57,0.03675896]
[1739579984876,7.97082982,197.58,197.48,7.97082982]
[1739579985175,138.83554875,197.62,197.43,1.5518]
[1739579985176,7.97082982,197.54,197.46,7.97082982]
[1739579985378,7.97082982,197.54,197.52,5.0619]
[1739579985776,7.97082982,197.56,197.55,5.0612]
[1739579985974,145.21037857,197.58,197.5,7.97082982]
[1739579986169,0.03844816,197.57,197.54,0.03221278]
[1739579986378,0.03844816,197.57,197.55,5.0611]
[1739579987874,0.03844816,197.57,197.54,0.03221278]
[1739579988075,0.03844816,197.57,197.56,5.0609]
[1739579988376,5.0611,197.56,197.54,0.03221278]
[1739579988579,13.03192982,197.56,197.54,0.03221278]
[1739579989178,5.0612,197.55,197.54,0.03221278]
[1739579990086,13.03182982,197.56,197.54,0.03221278]
[1739579991588,5.0612,197.55,197.54,0.03221278]
[1739579995280,5.0624,197.51,197.44,7.97082982]
[1739579995484,7.97082982,197.53,197.46,7.97082982]
[1739579995779,1.5825,197.54,197.51,5.062]
[1739579995984,13.03222982,197.55,197.46,7.97082982]
[1739579996392,0.03677471,197.52,197.49,0.03536572]
[1739579997689,0.03677471,197.52,197.51,5.062]
[1739579997994,137.23954875,197.59,197.5,7.97082982]
[1739579998184,137.23954875,197.59,197.49,0.03536572]
[1739579998185,137.23954875,197.59,197.53,7.97082982]
[1739579998390,137.23954875,197.59,197.55,7.97082982]
[1739579998986,137.27369065,197.59,197.58,5.0604]
[1739579999592,0.0341419,197.59,197.58,5.0604]
[1739580001883,7.97082982,197.65,197.57,7.97082982]
[1739580002093,7.97082982,197.65,197.61,5.0596]
[1739580003101,7.97082982,197.65,197.61,0.0374287]
[1739580003299,7.97082982,197.63,197.61,0.0374287]
[1739580007798,13.03002982,197.63,197.61,0.0374287]
[1739580008007,7.97082982,197.63,197.61,0.0374287]
[1739580009306,5.0594,197.62,197.61,0.0374287]
[1739580009604,7.97082982,197.63,197.61,0.0374287]
[1739580010403,7.97082982,197.63,197.61,5.0971287]
[1739580011409,7.97082982,197.63,197.61,0.0374287]
[1739580011604,7.97082982,197.65,197.61,0.0374287]
[1739580012102,7.97082982,197.67,197.61,0.0374287]
[1739580013311,7.97082982,197.67,197.64,5.0587]
[1739580013610,7.97082982,197.67,197.61,0.0374287]
[1739580014012,7.97082982,197.65,197.61,0.0374287]
[1739580014709,7.97082982,197.65,197.62,5.0593]
[1739580014906,7.97082982,197.65,197.61,0.0374287]
[1739580014907,7.97082982,197.63,197.61,0.0374287]
[1739580015508,13.03002982,197.63,197.61,0.0374287]
[1739580016113,5.0594,197.62,197.61,0.0374287]
[1739580016813,7.97082982,197.63,197.61,0.0374287]
[1739580017001,13.03002982,197.63,197.61,0.0374287]
[1739580017412,7.97082982,197.63,197.61,0.0374287]
[1739580017612,5.0594,197.62,197.61,0.0374287]
[1739580018009,7.97082982,197.63,197.61,0.0374287]
[1739580018205,7.97082982,197.65,197.61,0.0374287]
[1739580018602,7.97082982,197.65,197.62,5.0594]
[1739580018915,7.97082982,197.67,197.61,8.00825852]
[1739580020012,7.97082982,197.67,197.64,5.0587]
[1739580020209,7.97082982,197.67,197.61,8.00825852]
[1739580020714,137.23954875,197.69,197.63,7.97082982]
[1739580021214,13.02812982,197.71,197.66,5.0581]
[1739580021415,7.97082982,197.69,197.63,7.97082982]
[1739580021614,7.97082982,197.69,197.67,0.03217682]
[1739580022315,7.97082982,197.71,197.67,0.03217682]
[1739580022714,7.97082982,197.69,197.67,0.03217682]
[1739580023106,13.02852982,197.69,197.67,0.03217682]